[Event "World Senior chT-50 2019"]
[Site "Rhodes"]
[Date "2019.04.24"]
[Round "9.34"]
[White "Braso, Jorge"]
[Black "Goldmane, Astra"]
[Result "1/2-1/2"]
[ECO "B28"]
[WhiteElo "2098"]
[BlackElo "2020"]
[Annotator "NA"]
[PlyCount "62"]
[EventDate "2019.04.16"]
[EventType "team-tourn"]
[EventCountry "GRE"]
[SourceTitle "playchess.com"]
[Source "ChessBase"]
[SourceQuality "1"]
[WhiteTeam "Uruguay"]
[BlackTeam "Latvia"]
[WhiteTeamCountry "URU"]
[BlackTeamCountry "LAT"]
[TimeControl "40/5400+30:1800+30"]

1. e4 {[%emt 0:00:00]} c5 {[%emt 0:00:00]} 2. Nf3 {[%emt 0:00:00]} a6 {[%emt 0:00:00]} 3. d4 {[%emt 0:01:09]} cxd4 {[%emt 0:00:00]} 4. Nxd4 {[%emt 0:00:03]} Nf6 {[%emt 0:00:04]} 5. Nc3 {[%emt 0:01:08]} e5 {[%emt 0:01:02]} 6. Nf3 {[%emt 0:02:19]} Bb4 {[%emt 0:02:34]} 7. Bd2 {[%emt 0:10:19]} d5 {[%emt 0:06:51]} 8. Nxd5 {[%emt 0:06:52]} Bxd2+ {[%emt 0:09:06]} 9. Nxd2 {[%emt 0:00:35]} Nxd5 {[%emt 0:00:37]} 10. exd5 {[%emt 0:00:03]} Qxd5 {[%emt 0:00:19]} 11. Nc4 {[%emt 0:00:46]} Qe4+ {[%emt 0:15:22]} 12. Qe2 {[%emt 0:01:13]} Qxe2+ {[%emt 0:00:06]} 13. Bxe2 {[%emt 0:00:02]} Nc6 {[%emt 0:00:22]} 14. O-O-O {[%emt 0:01:39]} O-O {[%emt 0:05:41]} 15. Nb6 {[%emt 0:01:30]} Rb8 {[%emt 0:00:28]} 16. c3 {[%emt 0:03:09]} Re8 {[%emt 0:08:01]} 17. Nxc8 {[%emt 0:00:25]} Rbxc8 {[%emt 0:02:28]} 18. Rd7 {[%emt 0:02:41]} Nd4 {[%emt 0:07:47]} 19. Bd1 {[%emt 0:01:01]} b5 {[%emt 0:00:31]} 20. Kb1 {[%emt 0:00:19]} Ne6 {[%emt 0:00:30]} 21. Bb3 {[%emt 0:01:07]} Kf8 {[%emt 0:04:08]} 22. Re1 {[%emt 0:02:16]} f6 {[%emt 0:10:21]} 23. Ra7 {[%emt 0:11:49]} Rcd8 {[%emt 0:19:06]} 24. Re3 {[%emt 0:18:38]} Nc5 {[%emt 0:01:42]} 25. Rg3 {[%emt 0:04:41]} Nxb3 {[%emt 0:01:24]} 26. Rgxg7 {[%emt 0:02:51]} Nd2+ {[%emt 0:00:31]} 27. Kc2 {[%emt 0:00:50]} Re6 {[%emt 0:00:17]} 28. Rxh7 {[%emt 0:05:35]} Kg8 {[%emt 0:00:02]} 29. Rag7+ {[%emt 0:00:18]} Kf8 {[%emt 0:00:01]} 30. Rf7+ {[%emt 0:00:21]} Kg8 {[%emt 0:00:02]} 31. Ra7 {[%emt 0:00:10]} Ree8 {[%emt 0:00:01]} 1/2-1/2

[Event "World Senior chT-50 2019"]
[Site "Rhodes"]
[Date "2019.04.24"]
[Round "9.35"]
[White "Ungure, Liga"]
[Black "Durante, Aurelio"]
[Result "1-0"]
[ECO "B30"]
[WhiteElo "1930"]
[BlackElo "1955"]
[Annotator "NA"]
[PlyCount "101"]
[EventDate "2019.04.16"]
[EventType "team-tourn"]
[EventCountry "GRE"]
[SourceTitle "playchess.com"]
[Source "ChessBase"]
[SourceQuality "1"]
[WhiteTeam "Latvia"]
[BlackTeam "Uruguay"]
[WhiteTeamCountry "LAT"]
[BlackTeamCountry "URU"]
[TimeControl "40/5400+30:1800+30"]

1. e4 {[%emt 0:00:00]} c5 {[%emt 0:00:23]} 2. Nf3 {[%emt 0:00:00]} Nc6 {[%emt 0:00:06]} 3. Bb5 {[%emt 0:00:00]} Na5 {[%emt 0:02:33]} 4. Nc3 {[%emt 0:05:08]} a6 {[%emt 0:01:27]} 5. Be2 {[%emt 0:00:12]} d6 {[%emt 0:00:34]} 6. d4 {[%emt 0:02:50]} cxd4 {[%emt 0:00:30]} 7. Qxd4 {[%emt 0:04:33]} e6 {[%emt 0:04:21]} 8. Be3 {[%emt 0:04:07]} Bd7 {[%emt 0:01:01]} 9. Qb6 {[%emt 0:07:48]} Qxb6 {[%emt 0:00:27]} 10. Bxb6 {[%emt 0:00:02]} Nc6 {[%emt 0:00:10]} 11. O-O-O {[%emt 0:01:46]} Rc8 {[%emt 0:01:37]} 12. Nd2 {[%emt 0:03:11]} Ne5 {[%emt 0:11:25]} 13. f4 {[%emt 0:02:10]} Ng6 {[%emt 0:04:02]} 14. g3 {[%emt 0:01:07]} Rc6 {[%emt 0:02:34]} 15. Nc4 {[%emt 0:02:29]} Nf6 {[%emt 0:11:25]} 16. Rhe1 {[%emt 0:08:24]} Nxe4 {[%emt 0:09:08]} 17. Nxe4 {[%emt 0:01:47]} d5 {[%emt 0:00:02]} 18. Ned2 {[%emt 0:04:26]} dxc4 {[%emt 0:38:06]} 19. Nxc4 {[%emt 0:01:28]} Bb4 {[%emt 0:01:54]} 20. c3 {[%emt 0:01:33]} Bc5 {[%emt 0:00:50]} 21. Bxc5 {[%emt 0:04:51]} Rxc5 {[%emt 0:00:01]} 22. Nd6+ {[%emt 0:02:56]} Ke7 {[%emt 0:00:02]} 23. Nxf7 {[%emt 0:02:48]} Rb8 {[%emt 0:02:51]} 24. Nd6 {[%emt 0:06:37]} Ba4 {[%emt 0:02:36]} 25. Rd4 {[%emt 0:02:24]} Bc6 {[%emt 0:00:47]} 26. Bg4 {[%emt 0:05:30]} Bd5 {[%emt 0:01:07]} 27. Ne4 {[%emt 0:02:13]} Rc4 {[%emt 0:01:49]} 28. Rxc4 {[%emt 0:04:00]} Bxc4 {[%emt 0:00:02]} 29. b3 {[%emt 0:01:00]} Bd5 {[%emt 0:00:24]} 30. Ng5 {[%emt 0:01:49]} Nf8 {[%emt 0:01:08]} 31. c4 {[%emt 0:07:50]} Bc6 {[%emt 0:00:56]} 32. Nxe6 {[%emt 0:00:53]} Nxe6 {[%emt 0:00:41]} 33. Bxe6 {[%emt 0:00:26]} Kf6 {[%emt 0:00:17]} 34. Bg4 {[%emt 0:00:55]} g6 {[%emt 0:00:44]} 35. Re6+ {[%emt 0:01:56]} Kf7 {[%emt 0:00:01]} 36. Rd6 {[%emt 0:00:10]} Ke7 {[%emt 0:00:24]} 37. Rd4 {[%emt 0:01:00]} a5 {[%emt 0:00:24]} 38. Kd2 {[%emt 0:00:25]} Kf6 {[%emt 0:00:29]} 39. Kc3 {[%emt 0:00:23]} Ke7 {[%emt 0:00:34]} 40. a3 {[%emt 0:00:00]} Rf8 {[%emt 0:00:00]} 41. b4 {[%emt 0:00:42]} axb4+ {[%emt 0:03:38]} 42. axb4 {[%emt 0:00:30]} h5 {[%emt 0:00:46]} 43. Bh3 {[%emt 0:02:52]} Ra8 {[%emt 0:00:49]} 44. b5 {[%emt 0:00:54]} Be8 {[%emt 0:00:02]} 45. Bg2 {[%emt 0:00:41]} Rb8 {[%emt 0:02:14]} 46. b6 {[%emt 0:01:01]} Rc8 {[%emt 0:04:06]} 47. Kb4 {[%emt 0:00:40]} Bc6 {[%emt 0:00:23]} 48. Bxc6 {[%emt 0:01:57]} Rxc6 {[%emt 0:00:02]} 49. Kb5 {[%emt 0:02:25]} Re6 {[%emt 0:01:30]} 50. Rd5 {[%emt 0:00:25]} Rf6 {[%emt 0:01:36]} 51. Rc5 {[%emt 0:01:17]} 1-0

[Event "World Senior chT-50 2019"]
[Site "Rhodes"]
[Date "2019.04.24"]
[Round "9.36"]
[White "Barboza, Mauro"]
[Black "Harlinska, Sandra"]
[Result "1-0"]
[ECO "B08"]
[WhiteElo "1873"]
[BlackElo "1833"]
[Annotator "NA RC"]
[PlyCount "151"]
[EventDate "2019.04.16"]
[EventType "team-tourn"]
[EventCountry "GRE"]
[SourceTitle "playchess.com"]
[Source "ChessBase"]
[SourceQuality "1"]
[WhiteTeam "Uruguay"]
[BlackTeam "Latvia"]
[WhiteTeamCountry "URU"]
[BlackTeamCountry "LAT"]
[TimeControl "40/5400+30:1800+30"]

1. e4 {[%emt 0:00:00]} g6 {[%emt 0:00:00]} 2. d4 {[%emt 0:00:00]} Bg7 {[%emt 0:00:00]} 3. Nf3 {[%emt 0:00:05]} d6 {[%emt 0:00:00]} 4. Bc4 {[%emt 0:01:07]} Nf6 {[%emt 0:01:10]} 5. Nc3 {[%emt 0:00:23]} c6 {[%emt 0:00:27]} 6. O-O {[%emt 0:00:12]} O-O {[%emt 0:11:04]} 7. Bb3 {[%emt 0:00:09]} Qc7 {[%emt 0:15:18]} 8. h3 {[%emt 0:06:02] B08: Pirc Defence: Classical System} (8. e5 dxe5 9. Nxe5 Nbd7 10. Nd3 Nb6 11. Bf4 Qd8 12. Be5 Bf5 13. Nc5 Nbd7 14. Nxd7 Qxd7 15. Qe2 Be6 {1-0 (60) Vallejo Pons,F (2698)-Anton Guijarro,D (2631) Dubai 2014}) 8... Nbd7 {[%emt 0:03:36]} 9. Be3 {[%emt 0:03:37]} b5 {[%emt 0:06:50]} 10. a3 {[%emt 0:18:26]} a6 {[%emt 0:00:21]} 11. Rb1 $146 {[%emt 0:07:56]} ({Predecessor:} 11. Qd2 c5 12. Nd5 Nxd5 13. Bxd5 Bb7 14. Bxb7 Qxb7 {0-1 (31) Gonzalez Perez,J (1376)-Alvarado Arcila,M (2035) Maracay 2018}) 11... Bb7 {[%emt 0:02:02]} 12. Qc1 {[%emt 0:07:34]} c5 {[%emt 0:07:35]} 13. dxc5 {[%emt 0:01:48]} Nxc5 {[%emt 0:04:42]} 14. Bxc5 {[%emt 0:15:24]} Qxc5 {[%emt 0:02:13]} 15. Re1 {[%emt 0:04:29]} e6 {[%emt 0:21:30]} 16. Qe3 {[%emt 0:03:55]} Qxe3 {[%emt 0:08:55]} 17. Rxe3 {[%emt 0:00:11]} Bh6 {[%emt 0:00:20]} 18. Re2 {[%emt 0:01:00]} Rfd8 {[%emt 0:01:19]} 19. Rd1 {[%emt 0:01:35]} Rd7 {[%emt 0:01:31]} 20. Nh2 {[%emt 0:05:42]} Rad8 {[%emt 0:01:54]} 21. Ng4 {[%emt 0:00:19]} Nxg4 {[%emt 0:01:49]} 22. hxg4 {[%emt 0:01:16]} Bc6 {[%emt 0:00:04]} 23. g3 {[%emt 0:02:42]} Bg7 {[%emt 0:04:58]} 24. Rd3 {[%emt 0:03:08]} a5 {[%emt 0:00:15]} 25. Re1 {[%emt 0:07:44]} b4 {[%emt 0:02:34]} 26. axb4 {[%emt 0:00:19]} axb4 {[%emt 0:00:02]} 27. Nd1 {[%emt 0:01:37]} Bb5 {[%emt 0:00:47]} 28. Rd2 {[%emt 0:01:24]} Rc7 {[%emt 0:00:27]} 29. Kg2 {[%emt 0:01:06]} Bc4 {[%emt 0:00:39]} 30. Bxc4 {[%emt 0:00:40]} Rxc4 {[%emt 0:00:04]} 31. Kf3 {[%emt 0:00:50]} Bh6 {[%emt 0:01:11]} 32. Ne3 {[%emt 0:00:48]} Rc5 {[%emt 0:00:09]} 33. Kg2 {[%emt 0:00:42]} d5 {[%emt 0:00:45]} 34. exd5 {[%emt 0:00:56]} exd5 {[%emt 0:00:00]} 35. f4 {[%emt 0:00:21]} Bg7 {[%emt 0:00:00]} 36. Nd1 {[%emt 0:02:02]} Kf8 {[%emt 0:00:10]} 37. Kf2 {[%emt 0:00:52]} d4 {[%emt 0:00:11]} 38. Re4 {[%emt 0:00:30]} Rdc8 {[%emt 0:00:21]} 39. Ree2 {[%emt 0:00:23]} Re8 {[%emt 0:01:40]} 40. Rxe8+ {[%emt 0:00:00]} Kxe8 {[%emt 0:00:00]} 41. Ke2 {[%emt 0:00:43]} h5 {[%emt 0:01:46]} 42. g5 {[%emt 0:00:25]} f6 {[%emt 0:00:20]} 43. gxf6 {[%emt 0:04:31]} Bxf6 {[%emt 0:00:07]} 44. Kd3 {[%emt 0:00:20]} g5 {[%emt 0:03:27]} 45. Nf2 {[%emt 0:05:42]} gxf4 {[%emt 0:05:28]} 46. Ne4 {[%emt 0:04:07]} Rc6 {[%emt 0:01:18]} 47. gxf4 {[%emt 0:00:42]} b3 {[%emt 0:02:54]} 48. cxb3 {[%emt 0:00:47]} Bg7 {[%emt 0:04:49]} 49. Rh2 {[%emt 0:01:01]} Rh6 {[%emt 0:01:15]} 50. Ng3 {[%emt 0:00:30]} Rb6 {[%emt 0:04:58]} 51. Nxh5 {[%emt 0:01:46]} Bf8 {[%emt 0:04:00]} 52. Kxd4 {[%emt 0:01:07]} Rxb3 {[%emt 0:00:18]} 53. Ke4 {[%emt 0:08:09]} (53. Nf6+ $16 Kf7 54. Nd7) 53... Kf7 {[%emt 0:00:49]} 54. Kf5 {[%emt 0:00:56]} Rb5+ {[%emt 0:00:46]} 55. Kg4 {[%emt 0:00:11]} Be7 {[%emt 0:02:13]} 56. Rc2 {[%emt 0:00:43]} Rb4 {[%emt 0:01:03]} 57. Rd2 {[%emt 0:01:47]} Ke6 {[%emt 0:01:29]} 58. Re2+ {[%emt 0:01:07]} Kf7 $1 {[%emt 0:00:18]} 59. Rc2 {[%emt 0:03:45]} Ke6 {[%emt 0:00:22]} 60. Ng7+ {[%emt 0:00:30]} Kf7 {[%emt 0:00:13]} 61. Nf5 {[%emt 0:00:25]} Bf6 {[%emt 0:01:00]} 62. Nd6+ {[%emt 0:00:26]} Ke6 {[%emt 0:01:21]} 63. Nc4 {[%emt 0:00:08]} Kd5 $16 {[%emt 0:00:43]} 64. Kf5 {[%emt 0:00:09]} (64. Ne3+ $14 Ke4 65. Nd1) 64... Bd4 {[%emt 0:00:22]} 65. Ne5 {[%emt 0:01:24]} Bxb2 {[%emt 0:01:13]} 66. Nd3 {[%emt 0:00:21]} Ba3 {[%emt 0:01:56]} 67. Nxb4+ {[%emt 0:00:16]} Bxb4 {[%emt 0:00:01]} 68. Kg6 {[%emt 0:00:15]} Ke6 {[%emt 0:00:03]} 69. f5+ {[%emt 0:00:17]} Ke7 {[%emt 0:00:01]} 70. f6+ {[%emt 0:00:20]} Ke6 {[%emt 0:00:03]} 71. Re2+ {[%emt 0:00:22]} Kd5 {[%emt 0:00:08]} 72. f7 {[%emt 0:00:15]} Bf8 {[%emt 0:00:10]} 73. Re8 {[%emt 0:00:11]} Ba3 {[%emt 0:00:04]} 74. f8=Q {[%emt 0:00:19]} Bxf8 {[%emt 0:00:02]} 75. Rxf8 {[%emt 0:00:10]} Kd4 {[%emt 0:00:04]} 76. Kf5 {[%emt 0:00:21]} 1-0

[Event "World Senior chT-50 2019"]
[Site "Rhodes"]
[Date "2019.04.24"]
[Round "9.37"]
[White "Zimmermann, Rolf"]
[Black "Kristiansen, Erling"]
[Result "1/2-1/2"]
[ECO "A34"]
[WhiteElo "2086"]
[BlackElo "2134"]
[Annotator "NA"]
[PlyCount "37"]
[EventDate "2019.04.16"]
[EventType "team-tourn"]
[EventCountry "GRE"]
[SourceTitle "playchess.com"]
[Source "ChessBase"]
[SourceQuality "1"]
[WhiteTeam "Germany"]
[BlackTeam "Norway"]
[WhiteTeamCountry "GER"]
[BlackTeamCountry "NOR"]
[TimeControl "40/5400+30:1800+30"]

1. c4 {[%emt 0:01:37]} Nf6 {[%emt 0:00:00]} 2. Nc3 {[%emt 0:00:13]} c5 {[%emt 0:00:15]} 3. Nf3 {[%emt 0:01:03]} d5 {[%emt 0:00:21]} 4. cxd5 {[%emt 0:00:11]} Nxd5 {[%emt 0:00:02]} 5. e3 {[%emt 0:03:50]} Nc7 {[%emt 0:01:40]} 6. d4 {[%emt 0:03:05]} e6 {[%emt 0:00:42]} 7. Be2 {[%emt 0:03:00]} Nc6 {[%emt 0:00:21]} 8. O-O {[%emt 0:00:06]} cxd4 {[%emt 0:00:44]} 9. Nxd4 {[%emt 0:00:18]} Nxd4 {[%emt 0:01:26]} 10. Qxd4 {[%emt 0:00:21]} Qxd4 {[%emt 0:00:12]} 11. exd4 {[%emt 0:00:02]} Bd6 {[%emt 0:00:45]} 12. Be3 {[%emt 0:02:03]} O-O {[%emt 0:01:15]} 13. Rac1 {[%emt 0:03:34]} Rd8 {[%emt 0:01:29]} 14. Rfd1 {[%emt 0:01:27]} Nd5 {[%emt 0:04:42]} 15. Nxd5 {[%emt 0:01:21]} exd5 {[%emt 0:00:40]} 16. Bf3 {[%emt 0:06:58]} Be6 {[%emt 0:00:03]} 17. a3 {[%emt 0:00:21]} Rdc8 {[%emt 0:04:54]} 18. Rxc8+ {[%emt 0:00:52]} Rxc8 {[%emt 0:00:04]} 19. Rc1 {[%emt 0:00:01]} 1/2-1/2

[Event "World Senior chT-50 2019"]
[Site "Rhodes"]
[Date "2019.04.24"]
[Round "9.38"]
[White "Semakoff, Aleks"]
[Black "Hoehn, Michael"]
[Result "1/2-1/2"]
[ECO "C41"]
[WhiteElo "2037"]
[BlackElo "2040"]
[Annotator "NA"]
[PlyCount "50"]
[EventDate "2019.04.16"]
[EventType "team-tourn"]
[EventCountry "GRE"]
[SourceTitle "playchess.com"]
[Source "ChessBase"]
[SourceQuality "1"]
[WhiteTeam "Norway"]
[BlackTeam "Germany"]
[WhiteTeamCountry "NOR"]
[BlackTeamCountry "GER"]
[TimeControl "40/5400+30:1800+30"]

1. e4 {[%emt 0:00:00]} d6 {[%emt 0:00:00]} 2. d4 {[%emt 0:00:00]} e5 {[%emt 0:00:44]} 3. Nf3 {[%emt 0:00:13]} Bg4 {[%emt 0:01:39]} 4. dxe5 {[%emt 0:01:31]} Nc6 {[%emt 0:01:10]} 5. exd6 {[%emt 0:08:11]} Bxd6 {[%emt 0:00:09]} 6. Bb5 {[%emt 0:02:38]} Nf6 {[%emt 0:03:52]} 7. Nc3 {[%emt 0:05:09]} O-O {[%emt 0:01:15]} 8. Bxc6 {[%emt 0:00:59]} bxc6 {[%emt 0:00:08]} 9. O-O {[%emt 0:07:01]} Re8 {[%emt 0:03:18]} 10. Bg5 {[%emt 0:19:53]} Rb8 {[%emt 0:01:33]} 11. Rb1 {[%emt 0:05:25]} h6 {[%emt 0:04:53]} 12. Bh4 {[%emt 0:03:02]} g5 {[%emt 0:07:13]} 13. Bg3 {[%emt 0:00:20]} Bxg3 {[%emt 0:07:20]} 14. hxg3 {[%emt 0:05:36]} Qxd1 {[%emt 0:01:16]} 15. Rfxd1 {[%emt 0:01:02]} Nxe4 {[%emt 0:00:21]} 16. Nxe4 {[%emt 0:01:21]} Rxe4 {[%emt 0:00:09]} 17. Rd2 {[%emt 0:01:10]} Be6 {[%emt 0:28:30]} 18. b3 {[%emt 0:01:27]} c5 {[%emt 0:01:14]} 19. Re1 {[%emt 0:03:43]} Rxe1+ {[%emt 0:02:00]} 20. Nxe1 {[%emt 0:00:02]} c4 {[%emt 0:00:25]} 21. Nf3 {[%emt 0:01:13]} cxb3 {[%emt 0:04:52]} 22. cxb3 {[%emt 0:00:57]} Rb6 {[%emt 0:05:36]} 23. Rc2 {[%emt 0:01:49]} Ra6 {[%emt 0:00:17]} 24. Nd4 {[%emt 0:01:23]} Bd5 {[%emt 0:01:43]} 25. f3 {[%emt 0:03:38]} c6 {[%emt 0:03:52]} 1/2-1/2

[Event "World Senior chT-50 2019"]
[Site "Rhodes"]
[Date "2019.04.24"]
[Round "9.39"]
[White "Wolff, Peter"]
[Black "Johnsen, Sylvia"]
[Result "1-0"]
[ECO "B37"]
[WhiteElo "1893"]
[BlackElo "1949"]
[Annotator "NA"]
[PlyCount "79"]
[EventDate "2019.04.16"]
[EventType "team-tourn"]
[EventCountry "GRE"]
[SourceTitle "playchess.com"]
[Source "ChessBase"]
[SourceQuality "1"]
[WhiteTeam "Germany"]
[BlackTeam "Norway"]
[WhiteTeamCountry "GER"]
[BlackTeamCountry "NOR"]
[TimeControl "40/5400+30:1800+30"]

1. c4 {[%emt 0:00:00]} c5 {[%emt 0:00:00]} 2. Nf3 {[%emt 0:00:00]} Nf6 {[%emt 0:00:00]} 3. d4 {[%emt 0:00:00]} cxd4 {[%emt 0:01:00]} 4. Nxd4 {[%emt 0:00:00]} Nc6 {[%emt 0:01:55]} 5. Nc3 {[%emt 0:00:19]} g6 {[%emt 0:10:10]} 6. e4 {[%emt 0:00:25]} d6 {[%emt 0:06:58]} 7. Be2 {[%emt 0:01:18]} Bg7 {[%emt 0:00:19]} 8. Nc2 {[%emt 0:00:24]} O-O {[%emt 0:02:32]} 9. O-O {[%emt 0:00:11]} Nd7 {[%emt 0:01:00]} 10. Nd5 {[%emt 0:05:10]} Nc5 {[%emt 0:03:43]} 11. f3 {[%emt 0:01:04]} f5 {[%emt 0:06:20]} 12. exf5 {[%emt 0:04:03]} gxf5 {[%emt 0:06:01]} 13. Rb1 {[%emt 0:03:57]} e6 {[%emt 0:02:51]} 14. Nf4 {[%emt 0:05:56]} Be5 {[%emt 0:15:50]} 15. Qe1 {[%emt 0:07:18]} a5 {[%emt 0:07:07]} 16. Bd2 {[%emt 0:07:34]} Bf6 {[%emt 0:08:17]} 17. Qg3+ {[%emt 0:27:26]} Kh8 {[%emt 0:00:52]} 18. Qh3 {[%emt 0:00:06]} Rg8 {[%emt 0:03:07]} 19. Nh5 {[%emt 0:05:28]} Be7 {[%emt 0:01:41]} 20. Bc3+ {[%emt 0:00:39]} e5 {[%emt 0:00:44]} 21. f4 {[%emt 0:01:06]} Ne4 {[%emt 0:03:54]} 22. Be1 {[%emt 0:01:20]} Nf6 {[%emt 0:06:36]} 23. Kh1 {[%emt 0:02:34]} Nxh5 {[%emt 0:00:36]} 24. Bxh5 {[%emt 0:00:30]} e4 {[%emt 0:00:20]} 25. Ne3 {[%emt 0:02:18]} Bf6 {[%emt 0:02:11]} 26. Nd5 {[%emt 0:00:58]} Bd4 {[%emt 0:00:45]} 27. Bh4 {[%emt 0:02:37]} Qf8 {[%emt 0:01:10]} 28. Rfd1 {[%emt 0:01:05]} Bg7 {[%emt 0:02:55]} 29. Rd2 {[%emt 0:06:08]} Ra7 {[%emt 0:00:40]} 30. Bf2 {[%emt 0:02:00]} b6 {[%emt 0:01:00]} 31. Nxb6 {[%emt 0:02:10]} Be6 {[%emt 0:00:21]} 32. Rbd1 {[%emt 0:01:59]} Rc7 {[%emt 0:00:59]} 33. Rxd6 {[%emt 0:01:12]} Bc8 {[%emt 0:00:56]} 34. Na8 {[%emt 0:03:30]} Rd7 {[%emt 0:00:42]} 35. Rxd7 {[%emt 0:01:51]} Bxd7 {[%emt 0:00:01]} 36. Rxd7 {[%emt 0:00:49]} Qxa8 {[%emt 0:00:07]} 37. Bg6 {[%emt 0:01:41]} h6 {[%emt 0:00:14]} 38. Bxf5 {[%emt 0:00:24]} Qe8 {[%emt 0:00:54]} 39. Qxh6+ {[%emt 0:00:41]} Bxh6 {[%emt 0:00:08]} 40. Rh7# {[%emt 0:01:53] exf3 [%clk 00:04:34]} 1-0

[Event "World Senior chT-50 2019"]
[Site "Rhodes"]
[Date "2019.04.24"]
[Round "9.40"]
[White "Harstad, Christian"]
[Black "Theuer, Carsten"]
[Result "1/2-1/2"]
[ECO "E91"]
[WhiteElo "1911"]
[BlackElo "1868"]
[Annotator "NA"]
[PlyCount "113"]
[EventDate "2019.04.16"]
[EventType "team-tourn"]
[EventCountry "GRE"]
[SourceTitle "playchess.com"]
[Source "ChessBase"]
[SourceQuality "1"]
[WhiteTeam "Norway"]
[BlackTeam "Germany"]
[WhiteTeamCountry "NOR"]
[BlackTeamCountry "GER"]
[TimeControl "40/5400+30:1800+30"]

1. d4 {[%emt 0:00:00]} Nf6 {[%emt 0:00:00]} 2. c4 {[%emt 0:00:00]} g6 {[%emt 0:00:00]} 3. Nc3 {[%emt 0:00:00]} Bg7 {[%emt 0:00:00]} 4. e4 {[%emt 0:00:00]} d6 {[%emt 0:00:15]} 5. Nf3 {[%emt 0:00:18]} O-O {[%emt 0:01:39]} 6. Be2 {[%emt 0:00:19]} Nbd7 {[%emt 0:00:51]} 7. Bg5 {[%emt 0:03:47]} c5 {[%emt 0:01:00]} 8. d5 {[%emt 0:00:37]} Nb6 {[%emt 0:02:14]} 9. h3 {[%emt 0:02:36]} Nfd7 {[%emt 0:01:36]} 10. Qd2 {[%emt 0:01:16]} a6 {[%emt 0:01:46]} 11. Bh6 {[%emt 0:04:05]} Re8 {[%emt 0:03:07]} 12. h4 {[%emt 0:06:53]} Nf6 {[%emt 0:00:41]} 13. Bxg7 {[%emt 0:08:14]} Kxg7 {[%emt 0:00:12]} 14. h5 {[%emt 0:02:34]} gxh5 {[%emt 0:07:59]} 15. e5 {[%emt 0:04:15]} dxe5 {[%emt 0:04:43]} 16. Qg5+ {[%emt 0:01:02]} Kh8 {[%emt 0:03:34]} 17. Nxe5 {[%emt 0:01:30]} Rf8 {[%emt 0:01:00]} 18. Bxh5 {[%emt 0:02:33]} Qe8 {[%emt 0:01:21]} 19. O-O-O {[%emt 0:05:50]} Nbd7 {[%emt 0:01:25]} 20. f4 {[%emt 0:04:37]} Nxe5 {[%emt 0:09:58]} 21. fxe5 {[%emt 0:00:46]} Rg8 {[%emt 0:00:07]} 22. Qh6 {[%emt 0:06:00]} Nxh5 {[%emt 0:00:23]} 23. Rxh5 {[%emt 0:02:52]} Rg7 {[%emt 0:00:09]} 24. Rdh1 {[%emt 0:03:18]} Qg8 {[%emt 0:01:37]} 25. Ne4 {[%emt 0:03:41]} Bg4 {[%emt 0:06:19]} 26. Ng5 {[%emt 0:05:27]} Bxh5 {[%emt 0:04:39]} 27. Rxh5 {[%emt 0:00:07]} Rf8 {[%emt 0:01:52]} 28. d6 {[%emt 0:04:44]} exd6 {[%emt 0:03:05]} 29. Qf6 {[%emt 0:00:24]} dxe5 {[%emt 0:01:15]} 30. Rxh7+ {[%emt 0:02:44]} Qxh7 {[%emt 0:00:10]} 31. Nxh7 {[%emt 0:00:07]} Kxh7 {[%emt 0:00:11]} 32. Qxe5 {[%emt 0:00:52]} b6 {[%emt 0:00:33]} 33. Qf5+ {[%emt 0:03:45]} Rg6 {[%emt 0:00:14]} 34. g4 {[%emt 0:00:28]} Kg7 {[%emt 0:00:38]} 35. a3 {[%emt 0:01:12]} a5 {[%emt 0:06:35]} 36. Kc2 {[%emt 0:02:09]} Rd8 {[%emt 0:02:33]} 37. Qe5+ {[%emt 0:00:35]} Kg8 {[%emt 0:00:36]} 38. g5 {[%emt 0:01:41]} Re6 {[%emt 0:02:38]} 39. Qf5 {[%emt 0:04:20]} Kg7 {[%emt 0:00:43]} 40. b4 {[%emt 0:00:00]} axb4 {[%emt 0:00:00]} 41. axb4 {[%emt 0:01:57]} Rd4 {[%emt 0:01:49]} 42. Kb3 {[%emt 0:08:58]} Re3+ {[%emt 0:02:54]} 43. Ka4 {[%emt 0:00:12]} Rxc4 {[%emt 0:01:29]} 44. Qf6+ {[%emt 0:00:42]} Kg8 {[%emt 0:00:19]} 45. Qd8+ {[%emt 0:01:07]} Kh7 {[%emt 0:00:18]} 46. Kb5 {[%emt 0:03:56]} Rxb4+ {[%emt 0:00:25]} 47. Ka6 {[%emt 0:00:07]} Re6 {[%emt 0:01:28]} 48. Qd3+ {[%emt 0:05:59]} Kg7 {[%emt 0:00:35]} 49. Qf3 {[%emt 0:01:39]} Kg6 {[%emt 0:03:27]} 50. Kb7 {[%emt 0:01:00]} b5 {[%emt 0:00:31]} 51. Qd3+ {[%emt 0:00:32]} Kxg5 {[%emt 0:02:21]} 52. Qd5+ {[%emt 0:00:23]} Kf6 {[%emt 0:04:34]} 53. Qxc5 {[%emt 0:00:28]} Rb1 {[%emt 0:00:43]} 54. Qf2+ {[%emt 0:01:15]} Ke7 {[%emt 0:02:09]} 55. Qh4+ {[%emt 0:02:40]} Kf8 {[%emt 0:00:20]} 56. Qh8+ {[%emt 0:00:33]} Ke7 {[%emt 0:00:03]} 57. Qh4+ {[%emt 0:00:20]} 1/2-1/2